Department Family,Entity,Date,Expense Type,Expense Area,Supplier,AP Amount
Department of Health,St. Helens&Knowsley Hospitals NHS Trust,28/02/2021,Blood Products,HAEM + BLOOD TRANSFUSION,NHS BLOOD & TRANSPLANT,"100,601.09"
Department of Health,St. Helens&Knowsley Hospitals NHS Trust,28/02/2021,Computer Hardware Purch,MMDA PROGRAMME COSTS - SHARED SERVICES,CDW LTD,"31,725.54"
Department of Health,St. Helens&Knowsley Hospitals NHS Trust,28/02/2021,Computer Hardware Purch,MMDA PROGRAMME COSTS - SHARED SERVICES,CDW LTD,"6,345.11"
Department of Health,St. Helens&Knowsley Hospitals NHS Trust,28/02/2021,Computer Hardware Purch,TRUST RECHARGES,VODAFONE LTD,"3,066.24"
Department of Health,St. Helens&Knowsley Hospitals NHS Trust,28/02/2021,Computer Hardware Purch,MMDA PROGRAMME COSTS - SHARED SERVICES,HP INC UK LTD,"23,029.00"
Department of Health,St. Helens&Knowsley Hospitals NHS Trust,28/02/2021,Computer Hardware Purch,TRUST RECHARGES,HP INC UK LTD,"38,334.50"
Department of Health,St. Helens&Knowsley Hospitals NHS Trust,28/02/2021,Computer Hardware Purch,TRUST RECHARGES,HP INC UK LTD,"7,666.90"
Department of Health,St. Helens&Knowsley Hospitals NHS Trust,28/02/2021,Computer Hardware Purch,MMDA PROGRAMME COSTS - SHARED SERVICES,INSIGHT DIRECT (UK) LTD,"22,960.00"
Department of Health,St. Helens&Knowsley Hospitals NHS Trust,28/02/2021,Computer Hardware Purch,MMDA PROGRAMME COSTS - SHARED SERVICES,INSIGHT DIRECT (UK) LTD,"4,592.00"
Department of Health,St. Helens&Knowsley Hospitals NHS Trust,28/02/2021,Computer Hardware Purch,TRUST RECHARGES,HP INC UK LTD,250
Department of Health,St. Helens&Knowsley Hospitals NHS Trust,28/02/2021,Computer Hardware Purch,TRUST RECHARGES,HP INC UK LTD,"37,873.00"
Department of Health,St. Helens&Knowsley Hospitals NHS Trust,28/02/2021,Computer Hardware Purch,TRUST RECHARGES,HP INC UK LTD,"7,624.60"
Department of Health,St. Helens&Knowsley Hospitals NHS Trust,28/02/2021,Computer Maintenance,TRUST IT SYSTEMS,SYSTEM C HEALTHCARE LTD,"30,000.00"
Department of Health,St. Helens&Knowsley Hospitals NHS Trust,28/02/2021,Computer Maintenance,TRUST IT SYSTEMS,SYSTEM C HEALTHCARE LTD,"6,000.00"
Department of Health,St. Helens&Knowsley Hospitals NHS Trust,28/02/2021,Computer Maintenance,TRUST IT SYSTEMS,SYSTEM C HEALTHCARE LTD,"48,994.05"
Department of Health,St. Helens&Knowsley Hospitals NHS Trust,28/02/2021,Computer Maintenance,TRUST IT SYSTEMS,SYSTEM C HEALTHCARE LTD,"9,798.81"
Department of Health,St. Helens&Knowsley Hospitals NHS Trust,28/02/2021,Computer Maintenance,TRUST IT SYSTEMS,SYSTEM C HEALTHCARE LTD,"48,994.05"
Department of Health,St. Helens&Knowsley Hospitals NHS Trust,28/02/2021,Computer Maintenance,TRUST IT SYSTEMS,SYSTEM C HEALTHCARE LTD,"9,798.81"
Department of Health,St. Helens&Knowsley Hospitals NHS Trust,28/02/2021,Computer Maintenance,TRUST IT SYSTEMS,SYSTEM C HEALTHCARE LTD,"48,994.05"
Department of Health,St. Helens&Knowsley Hospitals NHS Trust,28/02/2021,Computer Maintenance,TRUST IT SYSTEMS,SYSTEM C HEALTHCARE LTD,"9,798.81"
Department of Health,St. Helens&Knowsley Hospitals NHS Trust,28/02/2021,Computer Maintenance,TRUST IT SYSTEMS,SYSTEM C HEALTHCARE LTD,"302,936.55"
Department of Health,St. Helens&Knowsley Hospitals NHS Trust,28/02/2021,Computer Maintenance,TRUST IT SYSTEMS,SYSTEM C HEALTHCARE LTD,"60,587.31"
Department of Health,St. Helens&Knowsley Hospitals NHS Trust,28/02/2021,Computer Maintenance,TRUST IT SYSTEMS,SYSTEM C HEALTHCARE LTD,"302,936.55"
Department of Health,St. Helens&Knowsley Hospitals NHS Trust,28/02/2021,Computer Maintenance,TRUST IT SYSTEMS,SYSTEM C HEALTHCARE LTD,"60,587.31"
Department of Health,St. Helens&Knowsley Hospitals NHS Trust,28/02/2021,Computer Software/License,MMDA PROGRAMME COSTS - SHARED SERVICES,INSIGHT DIRECT (UK) LTD,"21,692.21"
Department of Health,St. Helens&Knowsley Hospitals NHS Trust,28/02/2021,Computer Software/License,MMDA PROGRAMME COSTS - SHARED SERVICES,INSIGHT DIRECT (UK) LTD,252.36
Department of Health,St. Helens&Knowsley Hospitals NHS Trust,28/02/2021,Computer Software/License,MMDA PROGRAMME COSTS - SHARED SERVICES,INSIGHT DIRECT (UK) LTD,"4,388.91"
Department of Health,St. Helens&Knowsley Hospitals NHS Trust,28/02/2021,Continence Products,COMMUNITY CONTINENCE SERVICE,ESSITY UK LTD,"31,846.95"
Department of Health,St. Helens&Knowsley Hospitals NHS Trust,28/02/2021,Data Lines,MMDA PROGRAMME COSTS - SHARED SERVICES,VIRGIN MEDIA BUSINESS LTD,"117,184.26"
Department of Health,St. Helens&Knowsley Hospitals NHS Trust,28/02/2021,Data Lines,MMDA PROGRAMME COSTS - SHARED SERVICES,VIRGIN MEDIA BUSINESS LTD,"27,555.44"
Department of Health,St. Helens&Knowsley Hospitals NHS Trust,28/02/2021,Data Lines,MMDA PROGRAMME COSTS - SHARED SERVICES,VIRGIN MEDIA BUSINESS LTD,"36,482.68"
Department of Health,St. Helens&Knowsley Hospitals NHS Trust,28/02/2021,Equip Maint Contracts,RADIOGRAPHY WHISTON,INTEGRATED RADIOLOGICAL SERVICES LTD,"57,131.00"
Department of Health,St. Helens&Knowsley Hospitals NHS Trust,28/02/2021,Funeral Expenses,Mortuary,BARRINGTONS FUNERAL SERVICES LTD,"33,655.00"
Department of Health,St. Helens&Knowsley Hospitals NHS Trust,28/02/2021,IGComp3PSoft - Additions,Balance Sheet,PHILIPS UK AND IRELAND,"32,628.01"
Department of Health,St. Helens&Knowsley Hospitals NHS Trust,28/02/2021,IT Additions,Balance Sheet,SPECIALIST COMPUTER CENTRES PLC,"1,643.42"
Department of Health,St. Helens&Knowsley Hospitals NHS Trust,28/02/2021,IT Additions,Balance Sheet,SPECIALIST COMPUTER CENTRES PLC,151.54
Department of Health,St. Helens&Knowsley Hospitals NHS Trust,28/02/2021,IT Additions,Balance Sheet,SPECIALIST COMPUTER CENTRES PLC,"4,657.18"
Department of Health,St. Helens&Knowsley Hospitals NHS Trust,28/02/2021,IT Additions,Balance Sheet,SPECIALIST COMPUTER CENTRES PLC,"4,672.40"
Department of Health,St. Helens&Knowsley Hospitals NHS Trust,28/02/2021,IT Additions,Balance Sheet,SPECIALIST COMPUTER CENTRES PLC,"14,812.48"
Department of Health,St. Helens&Knowsley Hospitals NHS Trust,28/02/2021,IT Additions,Balance Sheet,SPECIALIST COMPUTER CENTRES PLC,"3,024.56"
Department of Health,St. Helens&Knowsley Hospitals NHS Trust,28/02/2021,IT Additions,Balance Sheet,SPECIALIST COMPUTER CENTRES PLC,490.98
Department of Health,St. Helens&Knowsley Hospitals NHS Trust,28/02/2021,Lab Equip Maint Contracts,CHEMICAL PATHOLOGY DEPT,SIEMENS HEALTHCARE DIAGNOSTICS LTD,"99,941.93"
Department of Health,St. Helens&Knowsley Hospitals NHS Trust,28/02/2021,Laboratory Chemicals,HAEM + BLOOD TRANSFUSION,SYSMEX UK LTD,"39,858.71"
Department of Health,St. Helens&Knowsley Hospitals NHS Trust,28/02/2021,Laboratory Chemicals,HAEM + BLOOD TRANSFUSION,SYSMEX UK LTD,"7,971.74"
Department of Health,St. Helens&Knowsley Hospitals NHS Trust,28/02/2021,Laboratory Equipment,MICROBIOLOGY DEPT,CHRYSTAL CONSULTING LTD,"68,797.77"
Department of Health,St. Helens&Knowsley Hospitals NHS Trust,28/02/2021,Laboratory Equipment,MICROBIOLOGY DEPT,CHRYSTAL CONSULTING LTD,"23,876.03"
Department of Health,St. Helens&Knowsley Hospitals NHS Trust,28/02/2021,Laboratory Equipment,MICROBIOLOGY DEPT,CHRYSTAL CONSULTING LTD,"4,775.21"
Department of Health,St. Helens&Knowsley Hospitals NHS Trust,28/02/2021,Laboratory Reagents,MICROBIOLOGY DEPT,CHRYSTAL CONSULTING LTD,"167,704.19"
Department of Health,St. Helens&Knowsley Hospitals NHS Trust,28/02/2021,Laboratory Reagents,MICROBIOLOGY DEPT,CHRYSTAL CONSULTING LTD,"33,540.84"
Department of Health,St. Helens&Knowsley Hospitals NHS Trust,28/02/2021,Laboratory Reagents,MICROBIOLOGY DEPT,CHRYSTAL CONSULTING LTD,"216,506.51"
Department of Health,St. Helens&Knowsley Hospitals NHS Trust,28/02/2021,Laboratory Reagents,MICROBIOLOGY DEPT,CHRYSTAL CONSULTING LTD,"43,301.30"
Department of Health,St. Helens&Knowsley Hospitals NHS Trust,28/02/2021,Laboratory Test Kits,POINT OF CARE,CHRYSTAL CONSULTING LTD,"34,796.35"
Department of Health,St. Helens&Knowsley Hospitals NHS Trust,28/02/2021,Lease Rents,MMDA PROGRAMME COSTS - SHARED SERVICES,OAKMERE ESTATES (LIVERPOOL) LTD,"34,500.00"
Department of Health,St. Helens&Knowsley Hospitals NHS Trust,28/02/2021,Lease Rents,MMDA PROGRAMME COSTS - SHARED SERVICES,OAKMERE ESTATES (LIVERPOOL) LTD,"34,500.00"
Department of Health,St. Helens&Knowsley Hospitals NHS Trust,28/02/2021,Med & Surg Equip General,PURCHASING + SUPPLY DEPT,ST HELENS RFC LTD,"109,965.00"
Department of Health,St. Helens&Knowsley Hospitals NHS Trust,28/02/2021,Med & Surg Equip General,PURCHASING + SUPPLY DEPT,ST HELENS RFC LTD,"21,993.00"
Department of Health,St. Helens&Knowsley Hospitals NHS Trust,28/02/2021,Miscellaneous Expenditure,HSDU WHISTON,SYNERGY HEALTH (UK) LTD,"175,882.15"
Department of Health,St. Helens&Knowsley Hospitals NHS Trust,28/02/2021,Miscellaneous Expenditure,PFI ENABLING WORKS,NEW HOSPITALS (ST HELENS & KNOWSLEY) LTD,"1,350,033.45"
Department of Health,St. Helens&Knowsley Hospitals NHS Trust,28/02/2021,Miscellaneous Expenditure,BEVAN COURT FM,NEW HOSPITALS (ST HELENS & KNOWSLEY) LTD,"71,624.17"
Department of Health,St. Helens&Knowsley Hospitals NHS Trust,28/02/2021,Mobile Phones,A + E NURSING WHISTON,VODAFONE LTD,108.68
Department of Health,St. Helens&Knowsley Hospitals NHS Trust,28/02/2021,Mobile Phones,ACUTE KIDNEY INJURY SERVICE,VODAFONE LTD,36.73
Department of Health,St. Helens&Knowsley Hospitals NHS Trust,28/02/2021,Mobile Phones,ACUTE MEDICAL UNIT,VODAFONE LTD,72
Department of Health,St. Helens&Knowsley Hospitals NHS Trust,28/02/2021,Mobile Phones,AMU NURSE SPECIALISTS,VODAFONE LTD,252.62
Department of Health,St. Helens&Knowsley Hospitals NHS Trust,28/02/2021,Mobile Phones,B + P DRESSINGS CLINIC,VODAFONE LTD,36.88
Department of Health,St. Helens&Knowsley Hospitals NHS Trust,28/02/2021,Mobile Phones,B + P MEDICAL PHOTOGRAPHY,VODAFONE LTD,72
Department of Health,St. Helens&Knowsley Hospitals NHS Trust,28/02/2021,Mobile Phones,B + P MEDICAL STAFF,VODAFONE LTD,108
Department of Health,St. Helens&Knowsley Hospitals NHS Trust,28/02/2021,Mobile Phones,BED MANAGEMENT,VODAFONE LTD,189
Department of Health,St. Helens&Knowsley Hospitals NHS Trust,28/02/2021,Mobile Phones,BEVAN COURT 1,VODAFONE LTD,137.4
Department of Health,St. Helens&Knowsley Hospitals NHS Trust,28/02/2021,Mobile Phones,BEVAN COURT 2,VODAFONE LTD,214.54
Department of Health,St. Helens&Knowsley Hospitals NHS Trust,28/02/2021,Mobile Phones,BUSINESS RELATIONSHIPS,VODAFONE LTD,36
Department of Health,St. Helens&Knowsley Hospitals NHS Trust,28/02/2021,Mobile Phones,C.O.P.D SERVICE (KPCT),VODAFONE LTD,9
Department of Health,St. Helens&Knowsley Hospitals NHS Trust,28/02/2021,Mobile Phones,C.O.P.D SERVICE (STHPCT),VODAFONE LTD,"1,294.74"
Department of Health,St. Helens&Knowsley Hospitals NHS Trust,28/02/2021,Mobile Phones,CANCER CORE STAFF AND NON-PAY,VODAFONE LTD,78.58
Department of Health,St. Helens&Knowsley Hospitals NHS Trust,28/02/2021,Mobile Phones,CANCER NURSE SPEC MCG,VODAFONE LTD,72
Department of Health,St. Helens&Knowsley Hospitals NHS Trust,28/02/2021,Mobile Phones,CANCER NURSE SPEC SCG,VODAFONE LTD,70.2
Department of Health,St. Helens&Knowsley Hospitals NHS Trust,28/02/2021,Mobile Phones,CANCER SERVICES - ADMIN,VODAFONE LTD,36
Department of Health,St. Helens&Knowsley Hospitals NHS Trust,28/02/2021,Mobile Phones,CANCER SVS CO-ORDINATION,VODAFONE LTD,234
Department of Health,St. Helens&Knowsley Hospitals NHS Trust,28/02/2021,Mobile Phones,CARDIO-RESPIRATORY (ECG),VODAFONE LTD,45
Department of Health,St. Helens&Knowsley Hospitals NHS Trust,28/02/2021,Mobile Phones,CARDIOLOGY NURSING,VODAFONE LTD,90
Department of Health,St. Helens&Knowsley Hospitals NHS Trust,28/02/2021,Mobile Phones,CARDIOLOGY SNR MEDICAL,VODAFONE LTD,88.79
Department of Health,St. Helens&Knowsley Hospitals NHS Trust,28/02/2021,Mobile Phones,CARE OF ELDERLY MED STAFF,VODAFONE LTD,777
Department of Health,St. Helens&Knowsley Hospitals NHS Trust,28/02/2021,Mobile Phones,CHAIRMAN'S OFFICE,VODAFONE LTD,252.14
Department of Health,St. Helens&Knowsley Hospitals NHS Trust,28/02/2021,Mobile Phones,CHIEF EXECUTIVE'S OFFICE,VODAFONE LTD,422.53
Department of Health,St. Helens&Knowsley Hospitals NHS Trust,28/02/2021,Mobile Phones,CLINICAL GOVERNANCE TEAM,VODAFONE LTD,27
Department of Health,St. Helens&Knowsley Hospitals NHS Trust,28/02/2021,Mobile Phones,CLINICAL PSYCHOLOGY,VODAFONE LTD,212.94
Department of Health,St. Helens&Knowsley Hospitals NHS Trust,28/02/2021,Mobile Phones,CLINICAL SUPPORT DIV MGMT,VODAFONE LTD,72
Department of Health,St. Helens&Knowsley Hospitals NHS Trust,28/02/2021,Mobile Phones,COE NURSE SPECIALISTS,VODAFONE LTD,117.49
Department of Health,St. Helens&Knowsley Hospitals NHS Trust,28/02/2021,Mobile Phones,COLD DECONTAMINATION,VODAFONE LTD,36
Department of Health,St. Helens&Knowsley Hospitals NHS Trust,28/02/2021,Mobile Phones,COLD DECONTAMINATION WHISTON,VODAFONE LTD,81.91
Department of Health,St. Helens&Knowsley Hospitals NHS Trust,28/02/2021,Mobile Phones,COMMUNICATIONS,VODAFONE LTD,146.2
Department of Health,St. Helens&Knowsley Hospitals NHS Trust,28/02/2021,Mobile Phones,COMMUNITY CARDIAC TEAM,VODAFONE LTD,399.6
Department of Health,St. Helens&Knowsley Hospitals NHS Trust,28/02/2021,Mobile Phones,COMMUNITY CONTINENCE SERVICE,VODAFONE LTD,144.86
Department of Health,St. Helens&Knowsley Hospitals NHS Trust,28/02/2021,Mobile Phones,COMMUNITY FRAILTY SERVICE,VODAFONE LTD,500.14
Department of Health,St. Helens&Knowsley Hospitals NHS Trust,28/02/2021,Mobile Phones,COMMUNITY MIDWIFERY,VODAFONE LTD,"4,310.15"
Department of Health,St. Helens&Knowsley Hospitals NHS Trust,28/02/2021,Mobile Phones,COMMUNITY NURSING MANAGEMENT,VODAFONE LTD,72
Department of Health,St. Helens&Knowsley Hospitals NHS Trust,28/02/2021,Mobile Phones,COMMUNITY PAEDIATRICS,VODAFONE LTD,547.2
Department of Health,St. Helens&Knowsley Hospitals NHS Trust,28/02/2021,Mobile Phones,COMMUNITY SERVICES MANAGEMENT,VODAFONE LTD,72
Department of Health,St. Helens&Knowsley Hospitals NHS Trust,28/02/2021,Mobile Phones,COMMUNITY SLA'S,VODAFONE LTD,321.67
Department of Health,St. Helens&Knowsley Hospitals NHS Trust,28/02/2021,Mobile Phones,COMPLAINTS,VODAFONE LTD,180
Department of Health,St. Helens&Knowsley Hospitals NHS Trust,28/02/2021,Mobile Phones,COVID,VODAFONE LTD,112.58
Department of Health,St. Helens&Knowsley Hospitals NHS Trust,28/02/2021,Mobile Phones,DIABETES NURSING,VODAFONE LTD,72
Department of Health,St. Helens&Knowsley Hospitals NHS Trust,28/02/2021,Mobile Phones,DIABETES SNR MEDICAL,VODAFONE LTD,72
Department of Health,St. Helens&Knowsley Hospitals NHS Trust,28/02/2021,Mobile Phones,DIABETES STP,VODAFONE LTD,432.11
Department of Health,St. Helens&Knowsley Hospitals NHS Trust,28/02/2021,Mobile Phones,DIGITAL ASPIRATION PRGRME,VODAFONE LTD,39.48
Department of Health,St. Helens&Knowsley Hospitals NHS Trust,28/02/2021,Mobile Phones,DN CENTRAL,VODAFONE LTD,589.27
Department of Health,St. Helens&Knowsley Hospitals NHS Trust,28/02/2021,Mobile Phones,DN HAYDOCK AND NEWTON,VODAFONE LTD,753.28
Department of Health,St. Helens&Knowsley Hospitals NHS Trust,28/02/2021,Mobile Phones,DN NORTH,VODAFONE LTD,167.38
Department of Health,St. Helens&Knowsley Hospitals NHS Trust,28/02/2021,Mobile Phones,DN SOUTH,VODAFONE LTD,"1,596.44"
Department of Health,St. Helens&Knowsley Hospitals NHS Trust,28/02/2021,Mobile Phones,DN St Helens OOH,VODAFONE LTD,55.58
Department of Health,St. Helens&Knowsley Hospitals NHS Trust,28/02/2021,Mobile Phones,DUFFY SUITE INTERMEDIATE CARE UNIT,VODAFONE LTD,36
Department of Health,St. Helens&Knowsley Hospitals NHS Trust,28/02/2021,Mobile Phones,EAST MIDLANDS HEE,VODAFONE LTD,180
Department of Health,St. Helens&Knowsley Hospitals NHS Trust,28/02/2021,Mobile Phones,EMERGENCY PLANNING,VODAFONE LTD,36
Department of Health,St. Helens&Knowsley Hospitals NHS Trust,28/02/2021,Mobile Phones,ENT MEDICAL STAFF,VODAFONE LTD,36
Department of Health,St. Helens&Knowsley Hospitals NHS Trust,28/02/2021,Mobile Phones,EPMA,VODAFONE LTD,108
Department of Health,St. Helens&Knowsley Hospitals NHS Trust,28/02/2021,Mobile Phones,ESTATE SURVEY SECTION,VODAFONE LTD,36
Department of Health,St. Helens&Knowsley Hospitals NHS Trust,28/02/2021,Mobile Phones,EXECUTIVE PAYROLL,VODAFONE LTD,181.03
Department of Health,St. Helens&Knowsley Hospitals NHS Trust,28/02/2021,Mobile Phones,FACILITIES MANAGEMENT,VODAFONE LTD,310.2
Department of Health,St. Helens&Knowsley Hospitals NHS Trust,28/02/2021,Mobile Phones,FALLS NURSE,VODAFONE LTD,45.55
Department of Health,St. Helens&Knowsley Hospitals NHS Trust,28/02/2021,Mobile Phones,FINANCE DIRECTORATE HQ,VODAFONE LTD,885.6
Department of Health,St. Helens&Knowsley Hospitals NHS Trust,28/02/2021,Mobile Phones,GASTRO UPPER GI FUND,VODAFONE LTD,36
Department of Health,St. Helens&Knowsley Hospitals NHS Trust,28/02/2021,Mobile Phones,GASTROLOGY NURSING,VODAFONE LTD,288.14
Department of Health,St. Helens&Knowsley Hospitals NHS Trust,28/02/2021,Mobile Phones,GASTROLOGY SNR MEDICAL,VODAFONE LTD,216.36
Department of Health,St. Helens&Knowsley Hospitals NHS Trust,28/02/2021,Mobile Phones,GEN MED ENDOSCOPY H2,VODAFONE LTD,36
Department of Health,St. Helens&Knowsley Hospitals NHS Trust,28/02/2021,Mobile Phones,GEN MEDICINE MEDICAL STF,VODAFONE LTD,153
Department of Health,St. Helens&Knowsley Hospitals NHS Trust,28/02/2021,Mobile Phones,GENERAL SURGERY MEDICAL,VODAFONE LTD,153
Department of Health,St. Helens&Knowsley Hospitals NHS Trust,28/02/2021,Mobile Phones,HAEM + BLOOD TRANSFUSION,VODAFONE LTD,417.6
Department of Health,St. Helens&Knowsley Hospitals NHS Trust,28/02/2021,Mobile Phones,HAEMATOLOGY MEDICAL,VODAFONE LTD,189.23
Department of Health,St. Helens&Knowsley Hospitals NHS Trust,28/02/2021,Mobile Phones,HISTOPATHOLOGY/MORTUARY,VODAFONE LTD,18.36
Department of Health,St. Helens&Knowsley Hospitals NHS Trust,28/02/2021,Mobile Phones,HOSPITAL DISCHARGE TEAM,VODAFONE LTD,72.14
Department of Health,St. Helens&Knowsley Hospitals NHS Trust,28/02/2021,Mobile Phones,HSDU WHISTON,VODAFONE LTD,36
Department of Health,St. Helens&Knowsley Hospitals NHS Trust,28/02/2021,Mobile Phones,HUMAN RESOURCES - CORE HR,VODAFONE LTD,122.06
Department of Health,St. Helens&Knowsley Hospitals NHS Trust,28/02/2021,Mobile Phones,HUMAN RESOURCES - RESOURCING,VODAFONE LTD,"1,696.88"
Department of Health,St. Helens&Knowsley Hospitals NHS Trust,28/02/2021,Mobile Phones,ICU MEDICAL STAFF WHISTON,VODAFONE LTD,929.16
Department of Health,St. Helens&Knowsley Hospitals NHS Trust,28/02/2021,Mobile Phones,ICU NURSING WHISTON,VODAFONE LTD,9
Department of Health,St. Helens&Knowsley Hospitals NHS Trust,28/02/2021,Mobile Phones,INFANT FEEDING TEAM,VODAFONE LTD,144.14
Department of Health,St. Helens&Knowsley Hospitals NHS Trust,28/02/2021,Mobile Phones,INFECTION CONTROL,VODAFONE LTD,93.42
Department of Health,St. Helens&Knowsley Hospitals NHS Trust,28/02/2021,Mobile Phones,INFORMATION DEPARTMENT,VODAFONE LTD,180
Department of Health,St. Helens&Knowsley Hospitals NHS Trust,28/02/2021,Mobile Phones,IV THERAPY ST HELENS,VODAFONE LTD,217.82
Department of Health,St. Helens&Knowsley Hospitals NHS Trust,28/02/2021,Mobile Phones,LEGAL SERVICES,VODAFONE LTD,36
Department of Health,St. Helens&Knowsley Hospitals NHS Trust,28/02/2021,Mobile Phones,LIBRARY SERVICES,VODAFONE LTD,36
Department of Health,St. Helens&Knowsley Hospitals NHS Trust,28/02/2021,Mobile Phones,MARSHALLS CROSS MEDICAL CENTRE,VODAFONE LTD,36
Department of Health,St. Helens&Knowsley Hospitals NHS Trust,28/02/2021,Mobile Phones,MATERNITY THEATRES EMERGENCY WEEKDAYS,VODAFONE LTD,9
Department of Health,St. Helens&Knowsley Hospitals NHS Trust,28/02/2021,Mobile Phones,MEDICAL CARE GROUP MGT,VODAFONE LTD,"1,982.29"
Department of Health,St. Helens&Knowsley Hospitals NHS Trust,28/02/2021,Mobile Phones,MGMT SPECIALIST MIDWIVES,VODAFONE LTD,499.46
Department of Health,St. Helens&Knowsley Hospitals NHS Trust,28/02/2021,Mobile Phones,MICROBIOLOGY DEPT,VODAFONE LTD,279
Department of Health,St. Helens&Knowsley Hospitals NHS Trust,28/02/2021,Mobile Phones,MICROBIOLOGY MED STAFF,VODAFONE LTD,72
Department of Health,St. Helens&Knowsley Hospitals NHS Trust,28/02/2021,Mobile Phones,MMDA PROGRAMME COSTS - SHARED SERVICES,VODAFONE LTD,"1,862.21"
Department of Health,St. Helens&Knowsley Hospitals NHS Trust,28/02/2021,Mobile Phones,NEWTON HOSPITAL OP,VODAFONE LTD,104.92
Department of Health,St. Helens&Knowsley Hospitals NHS Trust,28/02/2021,Mobile Phones,NEWTON INTERMEDIATE CARE SERVICE,VODAFONE LTD,252.88
Department of Health,St. Helens&Knowsley Hospitals NHS Trust,28/02/2021,Mobile Phones,NORTH WEST HEE,VODAFONE LTD,714.41
Department of Health,St. Helens&Knowsley Hospitals NHS Trust,28/02/2021,Mobile Phones,NURSING ADMINISTRATION,VODAFONE LTD,606.61
Department of Health,St. Helens&Knowsley Hospitals NHS Trust,28/02/2021,Mobile Phones,NURSING DIRECTOR ADMIN STAFF,VODAFONE LTD,36
Department of Health,St. Helens&Knowsley Hospitals NHS Trust,28/02/2021,Mobile Phones,OBS + GYNAE MEDICAL STAFF,VODAFONE LTD,108.16
Department of Health,St. Helens&Knowsley Hospitals NHS Trust,28/02/2021,Mobile Phones,OCCUPATIONAL HEALTH MED,VODAFONE LTD,85.86
Department of Health,St. Helens&Knowsley Hospitals NHS Trust,28/02/2021,Mobile Phones,OCCUPATIONAL HEALTH NURS,VODAFONE LTD,109.09
Department of Health,St. Helens&Knowsley Hospitals NHS Trust,28/02/2021,Mobile Phones,ORGANISATIONAL L And D,VODAFONE LTD,9
Department of Health,St. Helens&Knowsley Hospitals NHS Trust,28/02/2021,Mobile Phones,ORTHOPAEDIC MEDICAL STAFF,VODAFONE LTD,117
Department of Health,St. Helens&Knowsley Hospitals NHS Trust,28/02/2021,Mobile Phones,OUTPATIENTS ST HELENS,VODAFONE LTD,36
Department of Health,St. Helens&Knowsley Hospitals NHS Trust,28/02/2021,Mobile Phones,PAED SPECIALIST NURSES,VODAFONE LTD,99.88
Department of Health,St. Helens&Knowsley Hospitals NHS Trust,28/02/2021,Mobile Phones,PAEDIATRIC MEDICAL STAFF,VODAFONE LTD,9
Department of Health,St. Helens&Knowsley Hospitals NHS Trust,28/02/2021,Mobile Phones,PAEDIATRICS WARD CLERKS,VODAFONE LTD,9
Department of Health,St. Helens&Knowsley Hospitals NHS Trust,28/02/2021,Mobile Phones,PALLIATIVE CARE WHISTON,VODAFONE LTD,108.4
Department of Health,St. Helens&Knowsley Hospitals NHS Trust,28/02/2021,Mobile Phones,PATHOLOGY GENERAL,VODAFONE LTD,773.81
Department of Health,St. Helens&Knowsley Hospitals NHS Trust,28/02/2021,Mobile Phones,PATIENT ACCESS MGMT,VODAFONE LTD,108
Department of Health,St. Helens&Knowsley Hospitals NHS Trust,28/02/2021,Mobile Phones,PAYING PATIENTS,VODAFONE LTD,108
Department of Health,St. Helens&Knowsley Hospitals NHS Trust,28/02/2021,Mobile Phones,PAYROLL SERVICES,VODAFONE LTD,322.07
Department of Health,St. Helens&Knowsley Hospitals NHS Trust,28/02/2021,Mobile Phones,PFI DESIGN + CONSTRUCTION,VODAFONE LTD,252
Department of Health,St. Helens&Knowsley Hospitals NHS Trust,28/02/2021,Mobile Phones,PHARMACY GENERAL,VODAFONE LTD,757.78
Department of Health,St. Helens&Knowsley Hospitals NHS Trust,28/02/2021,Mobile Phones,PROJECTS And TRAINING,VODAFONE LTD,234.43
Department of Health,St. Helens&Knowsley Hospitals NHS Trust,28/02/2021,Mobile Phones,RADIOGRAPHY WHISTON,VODAFONE LTD,72
Department of Health,St. Helens&Knowsley Hospitals NHS Trust,28/02/2021,Mobile Phones,RADIOLOGY MEDICAL STAFF,VODAFONE LTD,72
Department of Health,St. Helens&Knowsley Hospitals NHS Trust,28/02/2021,Mobile Phones,RD AND I,VODAFONE LTD,153
Department of Health,St. Helens&Knowsley Hospitals NHS Trust,28/02/2021,Mobile Phones,REABLEMENT TEAM,VODAFONE LTD,144
Department of Health,St. Helens&Knowsley Hospitals NHS Trust,28/02/2021,Mobile Phones,REGIONAL CANCER TRANSFORMATION,VODAFONE LTD,72
Department of Health,St. Helens&Knowsley Hospitals NHS Trust,28/02/2021,Mobile Phones,REGIONAL VACCINATION CENTRE,VODAFONE LTD,179.62
Department of Health,St. Helens&Knowsley Hospitals NHS Trust,28/02/2021,Mobile Phones,RESPIRATORY NURSING,VODAFONE LTD,108
Department of Health,St. Helens&Knowsley Hospitals NHS Trust,28/02/2021,Mobile Phones,RESPIRATORY SNR MEDICAL,VODAFONE LTD,216
Department of Health,St. Helens&Knowsley Hospitals NHS Trust,28/02/2021,Mobile Phones,RESUSCITATION TRAINING,VODAFONE LTD,36.73
Department of Health,St. Helens&Knowsley Hospitals NHS Trust,28/02/2021,Mobile Phones,SAFEGUARDING,VODAFONE LTD,72
Department of Health,St. Helens&Knowsley Hospitals NHS Trust,28/02/2021,Mobile Phones,SANDERSON SUITE GENERAL SURGERY,VODAFONE LTD,72
Department of Health,St. Helens&Knowsley Hospitals NHS Trust,28/02/2021,Mobile Phones,SEDDON SUITE TRAUMA REHAB UNIT,VODAFONE LTD,48.88
Department of Health,St. Helens&Knowsley Hospitals NHS Trust,28/02/2021,Mobile Phones,SEPSIS,VODAFONE LTD,45.67
Department of Health,St. Helens&Knowsley Hospitals NHS Trust,28/02/2021,Mobile Phones,SERV INCR 4 TEACHING-SIFT,VODAFONE LTD,180
Department of Health,St. Helens&Knowsley Hospitals NHS Trust,28/02/2021,Mobile Phones,SERVICE DELIVERY INFRASTRUCTURE,VODAFONE LTD,213.6
Department of Health,St. Helens&Knowsley Hospitals NHS Trust,28/02/2021,Mobile Phones,SERVICE DELIVERY OPERATIONS,VODAFONE LTD,36
Department of Health,St. Helens&Knowsley Hospitals NHS Trust,28/02/2021,Mobile Phones,SEXUAL HEALTH,VODAFONE LTD,637.04
Department of Health,St. Helens&Knowsley Hospitals NHS Trust,28/02/2021,Mobile Phones,SHARED CARE RECORD - ST HELENS HEALTH ECONOMY,VODAFONE LTD,108
Department of Health,St. Helens&Knowsley Hospitals NHS Trust,28/02/2021,Mobile Phones,SOHT PHLEBOTOMY,VODAFONE LTD,150.3
Department of Health,St. Helens&Knowsley Hospitals NHS Trust,28/02/2021,Mobile Phones,ST HELENS CONTACT CARE IC THERAPY TEAM,VODAFONE LTD,34.5
Department of Health,St. Helens&Knowsley Hospitals NHS Trust,28/02/2021,Mobile Phones,ST HELENS CONTACT CARES REABLEMENT TEAM,VODAFONE LTD,42.78
Department of Health,St. Helens&Knowsley Hospitals NHS Trust,28/02/2021,Mobile Phones,STROKE MEDICAL STAFFING,VODAFONE LTD,9
Department of Health,St. Helens&Knowsley Hospitals NHS Trust,28/02/2021,Mobile Phones,SURGICAL CARE MANAGEMENT,VODAFONE LTD,468.22
Department of Health,St. Helens&Knowsley Hospitals NHS Trust,28/02/2021,Mobile Phones,SURGICAL CARE SECS,VODAFONE LTD,36
Department of Health,St. Helens&Knowsley Hospitals NHS Trust,28/02/2021,Mobile Phones,THEATRES ANAESTHETICS WH,VODAFONE LTD,9
Department of Health,St. Helens&Knowsley Hospitals NHS Trust,28/02/2021,Mobile Phones,THEATRES BURNS + PLASTICS,VODAFONE LTD,45.36
Department of Health,St. Helens&Knowsley Hospitals NHS Trust,28/02/2021,Mobile Phones,THEATRES DIRECTORATE MGT,VODAFONE LTD,409.94
Department of Health,St. Helens&Knowsley Hospitals NHS Trust,28/02/2021,Mobile Phones,THEATRES GEN SURGERY/UROL,VODAFONE LTD,18
Department of Health,St. Helens&Knowsley Hospitals NHS Trust,28/02/2021,Mobile Phones,THEATRES MAIN ST HELEN'S,VODAFONE LTD,54
Department of Health,St. Helens&Knowsley Hospitals NHS Trust,28/02/2021,Mobile Phones,THEATRES MATERNITY WH,VODAFONE LTD,18
Department of Health,St. Helens&Knowsley Hospitals NHS Trust,28/02/2021,Mobile Phones,THEATRES MEDICAL STAFF,VODAFONE LTD,46.84
Department of Health,St. Helens&Knowsley Hospitals NHS Trust,28/02/2021,Mobile Phones,THEATRES TRAU ORTHOPAEDIC,VODAFONE LTD,9
Department of Health,St. Helens&Knowsley Hospitals NHS Trust,28/02/2021,Mobile Phones,THERAPY - MEDICINES FOR OLDER PEOPLE,VODAFONE LTD,9
Department of Health,St. Helens&Knowsley Hospitals NHS Trust,28/02/2021,Mobile Phones,THERAPY MANAGEMENT & ADMIN.,VODAFONE LTD,714.04
Department of Health,St. Helens&Knowsley Hospitals NHS Trust,28/02/2021,Mobile Phones,TISSUE VIABILITY,VODAFONE LTD,25.84
Department of Health,St. Helens&Knowsley Hospitals NHS Trust,28/02/2021,Mobile Phones,TRAUMA ORTHOPAEDICS,VODAFONE LTD,36
Department of Health,St. Helens&Knowsley Hospitals NHS Trust,28/02/2021,Mobile Phones,UROLOGY MEDICAL STAFF,VODAFONE LTD,335.84
Department of Health,St. Helens&Knowsley Hospitals NHS Trust,28/02/2021,Mobile Phones,UROLOGY SUITE,VODAFONE LTD,81
Department of Health,St. Helens&Knowsley Hospitals NHS Trust,28/02/2021,Mobile Phones,WARD 1A WINTER,VODAFONE LTD,81
Department of Health,St. Helens&Knowsley Hospitals NHS Trust,28/02/2021,Mobile Phones,WARD 1B ACUTE MEDICAL UNIT,VODAFONE LTD,108
Department of Health,St. Helens&Knowsley Hospitals NHS Trust,28/02/2021,Mobile Phones,WARD 1C ACUTE MEDICAL UNIT,VODAFONE LTD,108
Department of Health,St. Helens&Knowsley Hospitals NHS Trust,28/02/2021,Mobile Phones,WARD 1E CORONARY CARE UNIT,VODAFONE LTD,44.12
Department of Health,St. Helens&Knowsley Hospitals NHS Trust,28/02/2021,Mobile Phones,WARD 2A HAEMATOLOGY,VODAFONE LTD,36
Department of Health,St. Helens&Knowsley Hospitals NHS Trust,28/02/2021,Mobile Phones,WARD 2B RESPIRATORY,VODAFONE LTD,36
Department of Health,St. Helens&Knowsley Hospitals NHS Trust,28/02/2021,Mobile Phones,WARD 2C RESPIRATORY,VODAFONE LTD,106.07
Department of Health,St. Helens&Knowsley Hospitals NHS Trust,28/02/2021,Mobile Phones,WARD 2D GENERAL MEDICINE,VODAFONE LTD,56.4
Department of Health,St. Helens&Knowsley Hospitals NHS Trust,28/02/2021,Mobile Phones,WARD 3A PLASTICS,VODAFONE LTD,176.52
Department of Health,St. Helens&Knowsley Hospitals NHS Trust,28/02/2021,Mobile Phones,WARD 3ALPHA ORTHOPAEDICS,VODAFONE LTD,36
Department of Health,St. Helens&Knowsley Hospitals NHS Trust,28/02/2021,Mobile Phones,WARD 3B ORTHOPAEDICS,VODAFONE LTD,36.14
Department of Health,St. Helens&Knowsley Hospitals NHS Trust,28/02/2021,Mobile Phones,WARD 3C GENERAL MEDICINE,VODAFONE LTD,67.36
Department of Health,St. Helens&Knowsley Hospitals NHS Trust,28/02/2021,Mobile Phones,WARD 3D GASTROENTEROLOGY,VODAFONE LTD,92.4
Department of Health,St. Helens&Knowsley Hospitals NHS Trust,28/02/2021,Mobile Phones,WARD 3E GYNAECOLOGY,VODAFONE LTD,124.25
Department of Health,St. Helens&Knowsley Hospitals NHS Trust,28/02/2021,Mobile Phones,WARD 3F PAEDIATRICS,VODAFONE LTD,100.37
Department of Health,St. Helens&Knowsley Hospitals NHS Trust,28/02/2021,Mobile Phones,WARD 4A GENERAL SURGERY,VODAFONE LTD,67.36
Department of Health,St. Helens&Knowsley Hospitals NHS Trust,28/02/2021,Mobile Phones,WARD 4B GENERAL SURGERY,VODAFONE LTD,53.2
Department of Health,St. Helens&Knowsley Hospitals NHS Trust,28/02/2021,Mobile Phones,WARD 4C GENERAL SURGERY,VODAFONE LTD,56.4
Department of Health,St. Helens&Knowsley Hospitals NHS Trust,28/02/2021,Mobile Phones,WARD 4D BURNS,VODAFONE LTD,96.16
Department of Health,St. Helens&Knowsley Hospitals NHS Trust,28/02/2021,Mobile Phones,WARD 5A CARE OF THE ELDERLY,VODAFONE LTD,67.44
Department of Health,St. Helens&Knowsley Hospitals NHS Trust,28/02/2021,Mobile Phones,WARD 5B CARE OF THE ELDERLY,VODAFONE LTD,37.28
Department of Health,St. Helens&Knowsley Hospitals NHS Trust,28/02/2021,Mobile Phones,WARD 5C ACUTE STROKE UNIT (HASU),VODAFONE LTD,209.4
Department of Health,St. Helens&Knowsley Hospitals NHS Trust,28/02/2021,Mobile Phones,WARD 5D ASU,VODAFONE LTD,63.71
Department of Health,St. Helens&Knowsley Hospitals NHS Trust,28/02/2021,Mobile Phones,WEST MIDLANDS HEE,VODAFONE LTD,252
Department of Health,St. Helens&Knowsley Hospitals NHS Trust,28/02/2021,Mobile Phones,WHIS THEATRES ANCIL & EMERG SUP STAFF,VODAFONE LTD,141.59
Department of Health,St. Helens&Knowsley Hospitals NHS Trust,28/02/2021,Mobile Phones,WHIS THEATRES EMERG WKDAY NGTS WKEND,VODAFONE LTD,36
Department of Health,St. Helens&Knowsley Hospitals NHS Trust,28/02/2021,Mobile Phones,WHISTON EQUIPMENT POOL,VODAFONE LTD,146.1
Department of Health,St. Helens&Knowsley Hospitals NHS Trust,28/02/2021,Mobile Phones,WORKFORCE INTELLIGENCE,VODAFONE LTD,108
Department of Health,St. Helens&Knowsley Hospitals NHS Trust,28/02/2021,Office Equipment,SERVICE DELIVERY OPERATIONS,CANON UK LTD,"52,796.33"
Department of Health,St. Helens&Knowsley Hospitals NHS Trust,28/02/2021,Other Gen Supplies & Srv,PFI DESIGN + CONSTRUCTION,HOSPEDIA LTD,"45,665.90"
Department of Health,St. Helens&Knowsley Hospitals NHS Trust,28/02/2021,Other Gen Supplies & Srv,PATIENT EQUALITY AND EXPERIENCE,HEALTHCARE COMMUNICATIONS UK LTD,"53,820.50"
Department of Health,St. Helens&Knowsley Hospitals NHS Trust,28/02/2021,Stocks Raw Materials,Balance Sheet,PHOENIX HEALTHCARE DISTRIBUTION LTD,"4,568.95"
Department of Health,St. Helens&Knowsley Hospitals NHS Trust,28/02/2021,Stocks Raw Materials,Balance Sheet,PHOENIX HEALTHCARE DISTRIBUTION LTD,"23,040.43"
Department of Health,St. Helens&Knowsley Hospitals NHS Trust,28/02/2021,Stocks Raw Materials,Balance Sheet,ROCHE PRODUCTS LTD,"27,973.63"
Department of Health,St. Helens&Knowsley Hospitals NHS Trust,28/02/2021,Stocks Raw Materials,Balance Sheet,ROCHE PRODUCTS LTD,"7,234.56"
Department of Health,St. Helens&Knowsley Hospitals NHS Trust,28/02/2021,Stocks Raw Materials,Balance Sheet,ROCHE PRODUCTS LTD,"38,584.32"
Department of Health,St. Helens&Knowsley Hospitals NHS Trust,28/02/2021,Stocks Raw Materials,Balance Sheet,ROCHE PRODUCTS LTD,675.19
Department of Health,St. Helens&Knowsley Hospitals NHS Trust,28/02/2021,Stocks Raw Materials,Balance Sheet,AAH PHARMACEUTICALS LTD,"15,389.40"
Department of Health,St. Helens&Knowsley Hospitals NHS Trust,28/02/2021,Stocks Raw Materials,Balance Sheet,AAH PHARMACEUTICALS LTD,"77,662.63"
Department of Health,St. Helens&Knowsley Hospitals NHS Trust,28/02/2021,Stocks Raw Materials,Balance Sheet,AAH PHARMACEUTICALS LTD,"15,359.12"
Department of Health,St. Helens&Knowsley Hospitals NHS Trust,28/02/2021,Stocks Raw Materials,Balance Sheet,AAH PHARMACEUTICALS LTD,"78,007.20"
Department of Health,St. Helens&Knowsley Hospitals NHS Trust,28/02/2021,Stocks Raw Materials,Balance Sheet,HEALTHCARE AT HOME LTD,"71,762.64"
Department of Health,St. Helens&Knowsley Hospitals NHS Trust,28/02/2021,Stocks Raw Materials,Balance Sheet,HEALTHCARE AT HOME LTD,"85,039.55"
Department of Health,St. Helens&Knowsley Hospitals NHS Trust,28/02/2021,Stocks Raw Materials,Balance Sheet,ALLIANCE HEALTHCARE DISTRIBUTION LTD,"13,592.37"
Department of Health,St. Helens&Knowsley Hospitals NHS Trust,28/02/2021,Stocks Raw Materials,Balance Sheet,ALLIANCE HEALTHCARE DISTRIBUTION LTD,"72,415.61"
Department of Health,St. Helens&Knowsley Hospitals NHS Trust,28/02/2021,Stocks Raw Materials,Balance Sheet,NOVARTIS PHARMACEUTICALS UK LTD,"25,483.25"
Department of Health,St. Helens&Knowsley Hospitals NHS Trust,28/02/2021,Stocks Raw Materials,Balance Sheet,NOVARTIS PHARMACEUTICALS UK LTD,35.66
Department of Health,St. Helens&Knowsley Hospitals NHS Trust,28/02/2021,Stocks Raw Materials,Balance Sheet,NOVARTIS PHARMACEUTICALS UK LTD,5.62
Department of Health,St. Helens&Knowsley Hospitals NHS Trust,28/02/2021,Stocks Raw Materials,Balance Sheet,NOVARTIS PHARMACEUTICALS UK LTD,5.42
Department of Health,St. Helens&Knowsley Hospitals NHS Trust,28/02/2021,Stocks Raw Materials,Balance Sheet,NOVARTIS PHARMACEUTICALS UK LTD,"2,620.80"
Department of Health,St. Helens&Knowsley Hospitals NHS Trust,28/02/2021,Stocks Raw Materials,Balance Sheet,HEALTHCARE AT HOME LTD,"106,566.74"
Department of Health,St. Helens&Knowsley Hospitals NHS Trust,28/02/2021,Stocks Raw Materials,Balance Sheet,ALLIANCE HEALTHCARE DISTRIBUTION LTD,"18,705.23"
Department of Health,St. Helens&Knowsley Hospitals NHS Trust,28/02/2021,Stocks Raw Materials,Balance Sheet,ALLIANCE HEALTHCARE DISTRIBUTION LTD,"98,887.35"
Department of Health,St. Helens&Knowsley Hospitals NHS Trust,28/02/2021,Stocks Raw Materials,Balance Sheet,NOVARTIS PHARMACEUTICALS UK LTD,"26,444.88"
Department of Health,St. Helens&Knowsley Hospitals NHS Trust,28/02/2021,Stocks Raw Materials,Balance Sheet,ALLOGA UK LTD,"44,359.49"
Department of Health,St. Helens&Knowsley Hospitals NHS Trust,28/02/2021,Stocks Raw Materials,Balance Sheet,ALLOGA UK LTD,"41,574.66"
Department of Health,St. Helens&Knowsley Hospitals NHS Trust,28/02/2021,Stocks Raw Materials,Balance Sheet,PHOENIX HEALTHCARE DISTRIBUTION LTD,"28,192.33"
Department of Health,St. Helens&Knowsley Hospitals NHS Trust,28/02/2021,Stocks Raw Materials,Balance Sheet,PHOENIX HEALTHCARE DISTRIBUTION LTD,"26,348.14"
Department of Health,St. Helens&Knowsley Hospitals NHS Trust,28/02/2021,Stocks Raw Materials,Balance Sheet,HEALTHCARE AT HOME LTD,"86,238.52"
Department of Health,St. Helens&Knowsley Hospitals NHS Trust,28/02/2021,Stocks Raw Materials,Balance Sheet,HEALTHCARE AT HOME LTD,"89,670.94"
Department of Health,St. Helens&Knowsley Hospitals NHS Trust,28/02/2021,Stocks Raw Materials,Balance Sheet,HEALTHCARE AT HOME LTD,"86,108.20"
Department of Health,St. Helens&Knowsley Hospitals NHS Trust,28/02/2021,VARIOUS,VARIOUS,SUPPLY CHAIN COORDINATION LIMITED,"191,875.41"
Department of Health,St. Helens&Knowsley Hospitals NHS Trust,28/02/2021,VARIOUS,VARIOUS,SUPPLY CHAIN COORDINATION LIMITED,"136,483.31"
Department of Health,St. Helens&Knowsley Hospitals NHS Trust,28/02/2021,VARIOUS,VARIOUS,SUPPLY CHAIN COORDINATION LIMITED,"161,052.65"
Department of Health,St. Helens&Knowsley Hospitals NHS Trust,28/02/2021,VARIOUS,VARIOUS,SUPPLY CHAIN COORDINATION LIMITED,"129,723.69"
Department of Health,St. Helens&Knowsley Hospitals NHS Trust,28/02/2021,VARIOUS,VARIOUS,SUPPLY CHAIN COORDINATION LIMITED,"132,697.07"
Department of Health,St. Helens&Knowsley Hospitals NHS Trust,28/02/2021,Water,RATES/WATER WHISTON,WATER PLUS,"50,843.47"
